Cogmind - Beta 14 @@@ ROGUE MODE // 2024.08.07 @ 22:54:47 Player: cleoBot Result: Destroyed by G-47 Trooper with Particle Gun Performance ------------- Evolutions (2) 1000 Regions Visited (6) 1200 Robots Destroyed (58) 290 Value Destroyed (1746) 1746 Prototype IDs (4) 80 Alien Tech Used (0) 0 Bonus (213) 213 TOTAL SCORE: 4529 Bonus ------- Follower Combat Kills 35 Aligned with FarCom 300 Friendly Fire -122 Cogmind --------- Core Integrity 0/550 Matter 250/300 Energy 100/100 System Corruption 13% Temperature Cool (9) Movement Core (1650) Ox32 Location -8/Materials Parts ------- > --- POWER (2) -------- Improved Deuterium Engine > --- PROPULSION (3) --- Improved Carbon-fiber Leg > --- UTILITY (4) ------ Huge Storage Unit Signal Interpreter Advanced Targeting Computer > --- WEAPON (2) ------- Advanced Beam Cannon Assault Cannon > --- INVENTORY (25) --- Light Ion Engine Light Ion Engine Light Nuclear Core Wheel Compact Wheel Flight Unit VTOL Module Coolant Injector Improved Sensor Array ECM Suite Power Shielding Light Armor Plating System Shield Latent Energy Streamer Heavy Particle Cannon Assault Cannon Peak State ------------ > --- POWER ------------ Light Deuterium Engine Improved Deuterium Engine > --- PROPULSION ------- Aluminum Leg Improved Carbon-fiber Leg Improved Carbon-fiber Leg > --- UTILITY ---------- Huge Storage Unit Signal Interpreter Advanced Targeting Computer Hardened Medium Armor Plating > --- WEAPON ----------- Shotgun Field Lobotomy Kit > --- INVENTORY -------- VTOL Module Coolant Injector Large Storage Unit Compact Battery Compact Matter Pod Improved Sensor Array Seismic Detector Power Shielding Shock Rifle Particle Gun Latent Energy Streamer Heavy Particle Cannon Improved Light Cannon Assault Cannon [Rating: 40] Favorites ----------- Power Light Nuclear Core Engine Light Deuterium Engine Power Core Light Nuclear Core Propulsion Aluminum Leg Treads Light Treads Leg Aluminum Leg Wheel Wheel Hover Unit Backup Propulsion I Flight Unit VTOL Module Utility High-capacity Battery Device Shield Generator Storage High-capacity Battery Processor Signal Interpreter Protection Hardened Medium Armor Plating Weapon Latent Energy Streamer Energy Gun Medium Laser Energy Cannon Latent Energy Streamer Ballistic Gun Flak Gun Ballistic Cannon Assault Cannon Special Weapon Field Lobotomy Kit Impact Weapon Maul Slashing Weapon Scythe Build | -11 -10 -9 -9 -9 -8 -8 ------- Run | Yrd Mat Mat Min Exi Min Mat Slots Evolved 4 | . . 2 . . . 2 Power 1 | . . . . . . 1 Propulsion 1 | . . . . . . 1 Utility 2 | . . 2 . . . . Weapon . | . . . . . . . Parts Attached 84 | 5 15 6 8 8 10 32 Power 12 | 1 3 . 1 . 2 5 Engine 9 | 1 2 . . . 1 5 Core 3 | . 1 . 1 . 1 . Reactor . | . . . . . . . Propulsion 19 | 2 5 . 2 . 3 7 Treads 7 | . 4 . . . 2 1 Leg 7 | . . . 2 . . 5 Wheel 3 | 2 1 . . . . . Hover 1 | . . . . . 1 . Flight 1 | . . . . . . 1 Utility 22 | . 4 4 2 2 4 6 Device 5 | . . 1 1 . 2 1 Storage 6 | . 1 . 1 1 1 2 Processor 4 | . 1 1 . 1 . 1 Hackware . | . . . . . . . Protection 7 | . 2 2 . . 1 2 Artifact . | . . . . . . . Weapon 31 | 2 3 2 3 6 1 14 Energy Gun 10 | 2 3 1 2 . . 2 Energy Cannon 8 | . . 1 . 3 . 4 Ballistic Gun 6 | . . . . 1 1 4 Ballistic Cannon 2 | . . . . . . 2 Launcher . | . . . . . . . Special Weapon 2 | . . . . 1 . 1 Impact Weapon 2 | . . . 1 1 . . Slashing Weapon 1 | . . . . . . 1 Piercing Weapon . | . . . . . . . Special Melee Weapon . | . . . . . . . Unidentified Prototypes 4 | . . . . 2 1 1 Corrupted Parts 3 | . . . . . 1 2 System Corruption 20 | . . . . . 10 10 Parts Lost 23 | . 1 . 5 . 5 12 Power 6 | . . . 1 . 1 4 Propulsion 7 | . 1 . . . 2 4 Utility 6 | . . . 2 . 2 2 Weapon 4 | . . . 2 . . 2 Highest Loss Streak 5 | . 1 . 5 . 4 3 To Critical Strikes . | . . . . . . . Average Slot Usage (%) 92 | . 93 99 90 99 97 78 Engine 5 | . 14 11 7 . . 13 Core 6 | . . . 3 11 10 . Treads 4 | . 20 22 15 . 2 5 Leg 14 | . . . 6 22 19 7 Device 6 | . . 8 10 11 8 . Storage 19 | . 12 11 14 24 22 13 Processor 11 | . 4 13 7 8 11 17 Protection 2 | . 6 10 6 . . 4 Energy Gun 3 | . 28 18 9 . . 2 Energy Cannon 9 | . . 3 7 11 20 3 Ballistic Gun 3 | . . . . 4 1 4 Ballistic Cannon 1 | . . . . . . 4 Special Weapon 2 | . . . . 6 . . Peak Build Rating 40 | 5 8 14 15 34 36 40 Average Rating 25 | 2 7 11 13 27 31 24 On Entrance 12 | . 5 8 14 15 29 13 Naked Turns . | . . . . . . . Heaviest Build 114 | 6 31 35 37 49 49 114 Greatest Support 63 | 20 40 40 40 20 40 63 Greatest Overweight (x) 37 | . 3 . 1 2 6 37 Average Overweight (x) 2 | . . . . 2 1 4 Largest Inventory Capacity 25 | 5 15 15 15 15 15 25 Average Capacity 17 | 5 13 15 15 15 15 23 Most Carried 19 | 5 14 15 15 13 13 19 Average Carried 11 | 2 9 11 13 10 11 14 Final Capacity 25 | 5 15 15 15 15 15 25 Final Carried 16 | 3 14 14 10 11 10 16 Class Distribution -------------------- 77% | Mutant 14% | Scavenger-Mutant 8% | Skirmisher Dominant Class ---------------- Mutant | -10/Materials Mutant | -9/Materials Mutant | -9/Mines Mutant | -9/Exiles Skirmisher | -8/Mines Mutant | -8/Materials Resources | -11 -10 -9 -9 -9 -8 -8 ----------- Run | Yrd Mat Mat Min Exi Min Mat Matter Collected 1869 | 166 362 57 48 . 389 847 Remotely . | . . . . . . . Salvage Created 2167 | . 464 71 . . 647 985 Parts 125 | . 28 4 . . 35 58 Haulers Intercepted 1 | . . . . . . 1 Recyclers Shooed 1 | . . 1 . . . . Parts Field Recycled . | . . . . . . . Retrieved Matter . | . . . . . . . Parts Self-Destructed . | . . . . . . . Prevented . | . . . . . . . Kills | -11 -10 -9 -9 -9 -8 -8 ------- Run | Yrd Mat Mat Min Exi Min Mat Combat Hostiles Destroyed 43 | . 10 1 . . 12 20 Guns 20 | . 10 1 . . 1 8 Cannons 15 | . . . . . 3 12 AOE 7 | . . . . . 7 . Classes Destroyed 11 | . 4 1 . . 3 3 Worker 4 | . . . . . 2 2 Builder 4 | . . 1 . . . 3 Tunneler 1 | . . . . . 1 . Hauler 1 | . . . . . . 1 Recycler 2 | . 1 . . . . 1 Watcher 2 | . 2 . . . . . Swarmer 9 | . 2 . . . 3 4 Grunt 27 | . 8 1 . . 8 10 Brawler 1 | . . . . . 1 . Sentry 5 | . . . . . . 5 Specialist 2 | . . . . . . 2 Best Kill Streak 5 | . 3 1 . . 3 5 Combat Bots Only 4 | . 3 1 . . 3 4 Max Kills in Single Turn 3 | . 1 1 . . 3 2 Gunslinging . | . . . . . . . Exploded 2 | . . . . . 2 . Melee . | . . . . . . . Uniques/NPCs Destroyed . | . . . . . . . Combat | -11 -10 -9 -9 -9 -8 -8 -------- Run | Yrd Mat Mat Min Exi Min Mat Hostile Shots Fired 362 | . 55 4 33 . 68 202 Missed 87 | . 14 3 3 . 15 52 Damage Taken 4392 | . 454 8 803 . 848 2279 Core 1010 | . 126 . 171 . 158 555 Absorbed by Shields 122 | . . 3 105 . 14 . Redirected to Shielding 23 | . . . 23 . . . Core Remaining (%) 55 | 100 49 . . . 17 . Volleys Fired 184 | . 44 9 12 4 27 88 Largest 2 | . 2 2 2 2 2 2 Hottest 125 | . 90 113 113 93 125 125 Shots Fired 284 | . 77 17 14 8 42 126 Gun 170 | . 77 16 7 3 18 49 Cannon 109 | . . 1 7 4 24 73 Launcher . | . . . . . . . Special 5 | . . . . 1 . 4 Kinetic 111 | . . . . 3 18 90 Thermal 126 | . 77 9 7 3 10 20 Explosive . | . . . . . . . Electromagnetic 42 | . . 8 7 1 14 12 Robot Hit Streak 10 | . 10 3 4 . 4 10 Robot Miss Streak 3 | . 3 3 2 . 3 3 Penetration Max . | . . . . . . . Secondary Targets 2 | . 2 . . . . . Max Gunslinging Chain 1 | . 1 . . . . . Shots Hit Robots 160 | . 46 10 9 . 18 77 Core Hits 104 | . 23 5 2 . 29 45 Critical Kills . | . . . . . . . Critical Parts Destroyed . | . . . . . . . Critical Strikes 8 | . 2 1 . . . 5 Burn 4 | . 2 1 . . . 1 Blast 4 | . . . . . . 4 Melee Attacks 1 | . . . . . . 1 Impact . | . . . . . . . Slashing 1 | . . . . . . 1 Piercing . | . . . . . . . Sneak Attacks 1 | . . . . . . 1 Combat Hostiles . | . . . . . . . Follow-up Attacks . | . . . . . . . Damage Inflicted 3927 | . 574 94 152 . 1247 1860 Guns 1369 | . 574 94 69 . 62 570 Cannons 1291 | . . . 83 . 138 1070 Explosions 1175 | . . . . . 1047 128 Melee 64 | . . . . . . 64 Ramming 28 | . . . . . . 28 Kinetic 1399 | . . . . . 62 1337 Thermal 1071 | . 574 49 83 . 172 193 Explosive . | . . . . . . . Electromagnetic 1365 | . . 45 69 . 1013 238 Impact . | . . . . . . . Slashing 64 | . . . . . . 64 Piercing . | . . . . . . . Highest Corruption 35 | . . . . 2 35 13 Average Corruption 10 | . . . . 2 10 11 Corruption Purged . | . . . . . . . Corruption Blocked . | . . . . . . . Effects 198 | . . . . 5 62 131 Message Errors 51 | . . . . 3 15 33 Matter Fused 47 | . . . . 1 15 31 Heat Flow Errors 24 | . . . . . 7 17 Energy Discharges 29 | . . . . 1 8 20 Parts Rejected 3 | . . . . . 2 1 Parts Fused 2 | . . . . . 1 1 Data Loss (minor) 21 | . . . . . 6 15 Data Loss (major) 4 | . . . . . 2 2 Misfires 7 | . . . . . 2 5 Alerts 6 | . . . . . 2 4 Weapon Failures 4 | . . . . . 2 2 Overload Shots . | . . . . . . . Overflow Damage 63 | . . . . . 7 56 Projectiles 32 | . . . . . . 32 Explosions 7 | . . . . . 7 . Melee 24 | . . . . . . 24 Knockbacks 12 | . . . . . . 12 Impact . | . . . . . . . Kinetic 10 | . . . . . . 10 Secondary 2 | . . . . . . 2 Self-Inflicted Damage 134 | . . . . . 125 9 Shots 7 | . . . . . 6 1 Rammed 2 | . . . . . . 2 Targets Rammed 6 | . . . . . . 6 Kicked 3 | . . . . . . 3 Crushed 1 | . . . . . . 1 Highest Temperature 484 | . 411 76 66 90 260 484 Average Temperature 100 | . 108 25 21 46 67 120 Received Heat Transfer 1597 | . 222 4 . . 423 948 Effects 17 | . 2 . . . . 15 Shutdowns 5 | . . . . . . 5 Interference 6 | . 1 . . . . 5 Short Circuit 4 | . 1 . . . . 3 Damage (minor) 2 | . . . . . . 2 Siege Activations . | . . . . . . . Robots Corrupted 1 | . . . . . 1 . Combat Hostiles 1 | . . . . . 1 . Parts Fried 5 | . . . . . 4 1 Impact Corruptions . | . . . . . . . Robots Melted . | . . . . . . . Combat Hostiles . | . . . . . . . Parts Melted 6 | . 6 . . . . . Heat Transferred 2796 | . 1684 222 148 . 261 481 Parts Sabotaged . | . . . . . . . Parts Stolen . | . . . . . . . Parts Stripped . | . . . . . . . Power Chain Reactions 1 | . . . . . 1 . Latent Energy Used 1203 | . . . . 97 989 117 LE Corruption 26 | . . . . 2 21 3 Alert | -11 -10 -9 -9 -9 -8 -8 ------- Run | Yrd Mat Mat Min Exi Min Mat Peak Influence 326 | . 326 63 30 . 116 257 Initial 42 | . . 27 . . . 42 Average 59 | . 152 44 8 . 39 53 Maximum Alert Level 1 | . 1 . . . . 1 Low Security (%) 95 | 100 78 100 100 . 100 96 Level 1 4 | . 21 . . . . 3 Level 2 . | . . . . . . . Level 3 . | . . . . . . . Level 4 . | . . . . . . . Level 5 . | . . . . . . . High Security . | . . . . . . . Max Security . | . . . . . . . Squads Dispatched 10 | . 3 2 1 . 1 3 Investigation 1 | . . . 1 . . . Extermination . | . . . . . . . Reinforcement 9 | . 3 2 . . 1 3 Assault . | . . . . . . . Garrison . | . . . . . . . Intercept . | . . . . . . . Searches Triggered . | . . . . . . . Construction Impeded 2 | . . . . . 1 1 Haulers Reinforced . | . . . . . . . Active Scanning Responses . | . . . . . . . Cargo Convoy Interrupts . | . . . . . . . Stealth | -11 -10 -9 -9 -9 -8 -8 --------- Run | Yrd Mat Mat Min Exi Min Mat Distress Signals 11 | . 1 4 1 . . 5 Communications Jammed . | . . . . . . . Distress Signals . | . . . . . . . Times Spotted 92 | . 20 5 8 . 13 46 Peak Tracking Total 10 | . 3 2 4 . 3 10 Tactical Retreats 9 | . 1 . 2 . 1 5 Traps | -11 -10 -9 -9 -9 -8 -8 ------- Run | Yrd Mat Mat Min Exi Min Mat Traps Triggered 1 | . 1 . . . . . Indirectly . | . . . . . . . Trap Hack Attempts . | . . . . . . . Triggered . | . . . . . . . Disarmed . | . . . . . . . Reprogrammed . | . . . . . . . Reused . | . . . . . . . Traps Extracted . | . . . . . . . Installed . | . . . . . . . Triggered . | . . . . . . . Machines | -11 -10 -9 -9 -9 -8 -8 ---------- Run | Yrd Mat Mat Min Exi Min Mat Machines Disabled 3 | . . . . . 2 1 Max in Single Turn 2 | . . . . . 2 1 Machines Repaired . | . . . . . . . Machines Dismantled . | . . . . . . . Machines Sabotaged . | . . . . . . . Overloaded Fab Kills . | . . . . . . . Hacking | -11 -10 -9 -9 -9 -8 -8 --------- Run | Yrd Mat Mat Min Exi Min Mat Machines Accessed 10 | . 5 2 . 2 . 1 Terminals 5 | . 2 2 . . . 1 Fabricators . | . . . . . . . Repair Stations 1 | . 1 . . . . . Recycling Units 2 | . 2 . . . . . Scanalyzers . | . . . . . . . Garrison Access . | . . . . . . . Total Hacks 60 | . 20 7 . 32 . 1 Successful 47 | . 11 3 . 32 . 1 Failed 13 | . 9 4 . . . . Catastrophic 1 | . 1 . . . . . Database Lockouts . | . . . . . . . Manual 1 | . . . . 1 . . Terminals 20 | . 12 7 . . . 1 Fabricators . | . . . . . . . Repair Stations 3 | . 3 . . . . . Recycling Units 5 | . 5 . . . . . Scanalyzers . | . . . . . . . Garrison Access . | . . . . . . . Terminal Hacks 42 | . 6 3 . 32 . 1 Record 37 | . 3 1 . 32 . 1 Robot Analysis 1 | . 1 . . . . . Emergency Access Points 1 | . 1 . . . . . Maintenance Status 1 | . . 1 . . . . Investigation Status 1 | . 1 . . . . . Zone Layout 1 | . . 1 . . . . Fabricator Hacks . | . . . . . . . Repair Station Hacks 2 | . 2 . . . . . Scan Component 1 | . 1 . . . . . Refit 1 | . 1 . . . . . Recycling Unit Hacks 3 | . 3 . . . . . Recycle Component 3 | . 3 . . . . . Scanalyzer . | . . . . . . . Garrison Access Hacks . | . . . . . . . Unauthorized Hacks . | . . . . . . . Terminals . | . . . . . . . Fabricators . | . . . . . . . Repair Stations . | . . . . . . . Recycling Units . | . . . . . . . Scanalyzers . | . . . . . . . Garrison Access . | . . . . . . . Data Cores Recovered . | . . . . . . . Used . | . . . . . . . Hacking Detections 4 | . 2 2 . . . . Full Trace Events 2 | . . 2 . . . . Feedback Events . | . . . . . . . Feedback Blocked . | . . . . . . . Robot Schematics Acquired . | . . . . . . . Robots Built . | . . . . . . . Authchips . | . . . . . . . Time . | . . . . . . . Total Robot Build Rating . | . . . . . . . Part Schematics Acquired . | . . . . . . . Parts Built . | . . . . . . . Authchips . | . . . . . . . Time . | . . . . . . . Total Part Build Rating . | . . . . . . . Parts Repaired . | . . . . . . . Time . | . . . . . . . Parts Recycled 3 | . 3 . . . . . Recycled Matter . | . . . . . . . Retrieved Matter . | . . . . . . . Retrieved Components . | . . . . . . . Parts Scanalyzed . | . . . . . . . Part Schematics Acquired . | . . . . . . . Parts Damaged . | . . . . . . . Bothacking | -11 -10 -9 -9 -9 -8 -8 ------------ Run | Yrd Mat Mat Min Exi Min Mat Used RIF Installer . | . . . . . . . Robots Hacked . | . . . . . . . Non-combat . | . . . . . . . Combat . | . . . . . . . Robot Hacks Applied . | . . . . . . . Relay Couplers Released . | . . . . . . . Fabnet Peak Effective % . | . . . . . . . Robots Rewired . | . . . . . . . Allies Hacked . | . . . . . . . Hacks Repelled . | . . . . . . . Allies | -11 -10 -9 -9 -9 -8 -8 -------- Run | Yrd Mat Mat Min Exi Min Mat Total Allies 3 | . . . . . . 3 Largest Group 2 | . . . . . . 2 Highest-Rated Group 95 | . . . . . . 95 Highest-Rated Ally 90 | . . . . . . 90 Total Orders . | . . . . . . . Ally Attacks 11 | . . . . . . 11 Total Damage 182 | . . . . . . 182 Kills 1 | . . . . . . 1 Allies Corrupted . | . . . . . . . Allies Melted 1 | . . . . . . 1 Field Lobotomies 3 | . . . . . . 3 Intel | -11 -10 -9 -9 -9 -8 -8 ------- Run | Yrd Mat Mat Min Exi Min Mat Robot Analysis Total 1 | . 1 . . . . . Derelict Logs Recovered . | . . . . . . . Drone Launches . | . . . . . . . Drone Recoveries . | . . . . . . . Exploration | -11 -10 -9 -9 -9 -8 -8 ------------- Run | Yrd Mat Mat Min Exi Min Mat Turns Passed 12302 | 58 880 420 327 5297 1703 3617 Spaces Moved 4438 | 67 511 232 173 2026 633 796 Core 84 | 27 . . . . . 57 Treads 1158 | . 359 232 130 . 63 374 Legs 3001 | . . . 43 2026 567 365 Wheels 192 | 40 152 . . . . . Hover 3 | . . . . . 3 . Flight . | . . . . . . . Fastest Speed 50 | 50 80 160 160 260 160 160 Average Speed 261 | 67 138 160 167 260 255 413 Slowest Speed 1900 | 80 160 160 190 260 560 1900 Overloaded Moves . | . . . . . . . Propulsion Burnouts . | . . . . . . . Robots Hopped . | . . . . . . . Cave-ins Triggered . | . . . . . . . Exploration Rate (%) 50 | 6 57 25 41 95 79 51 Regions Visited 6 Branch Regions 3 Pre-discovered Areas 1 | . . . . 1 . . Known Exits Taken 3 | . 1 . . 1 1 . Unknown Exits Taken 3 | 1 . 1 1 . . . Scrap Searched 2 | . . . 1 . 1 . Spaces Dug . | . . . . . . . Terrain Destroyed 102 | . . . 1 3 79 19 Melee . | . . . . . . . Projectile 19 | . . . 1 . 7 11 AOE 83 | . . . . 3 72 8 Terrain Rammed . | . . . . . . . Walls Destroyed . | . . . . . . . Machines Disabled . | . . . . . . . Actions | -11 -10 -9 -9 -9 -8 -8 --------- Run | Yrd Mat Mat Min Exi Min Mat Total 4878 | 79 605 268 198 2049 681 998 Wait 1 | . 1 . . . . . Move 4432 | 66 510 231 172 2025 632 796 Hop . | . . . . . . . Pick Up 113 | 8 25 12 3 5 9 51 Fast Attach 1 | . . . . . . 1 Attach 53 | 5 7 5 7 5 7 17 Detach 6 | . 1 1 . 1 1 2 Swap 30 | . 8 1 1 3 3 14 Drop 50 | . 9 9 3 5 2 22 Fire 184 | . 44 9 12 4 27 88 Melee 1 | . . . . . . 1 Ram . | . . . . . . . Kick 3 | . . . . . . 3 Crush 3 | . . . . . . 3 Escape Stasis . | . . . . . . . Rewire 1 | . . . . 1 . . Trap . | . . . . . . . Miscellaneous . | . . . . . . . Route ------- -11/Scrapyard -10/Materials -9/Materials (discovered 2 exits: [*Min] / [*Sto]) -9/Mines (discovered 2 exits: *Exi / [*Zio]) -9/Exiles (discovered 2 exits: *Min x2) -8/Mines (discovered 2 exits: *Mat x2) -8/Materials (discovered 1 exit: *Fac) History --------- Turn | Location | Event 2 | -11/Scrapyard | Met Revision 17 52 | -11/Scrapyard | Discovered new exit (range 8) 59 | -11/Scrapyard | Entered Materials 229 | -10/Materials | Discovered new exit (range 6) 312 | -10/Materials | Build established: Mutant 486 | -10/Materials | Core integrity fell below 50% 938 | -10/Materials | Identified exit to Materials 939 | -10/Materials | Entered another Materials area 939 | -9/Materials | Evolved 2 slots: Utility x2 1106 | -9/Materials | Met 8R-AWN 1239 | -9/Materials | Discovered new exit (range 13) 1253 | -9/Materials | Discovered new exit (range 14) 1359 | -9/Materials | Entered Mines 1360 | -9/Mines | A Derelict revealed a hidden shortcut to a safe place 1361 | -9/Mines | Followed 8R-AWN into the Mines 1407 | -9/Mines | Found a damaged Exp. Sensor Array with a note attached 1425 | -9/Mines | Found Prototype Device 1515 | -9/Mines | Assembled infested the area 1520 | -9/Mines | Assisted by a Guerilla fighting off Assembled 1563 | -9/Mines | Met a Derelict shopkeep closing up shop 1597 | -9/Mines | Discovered new exit (range 5) 1605 | -9/Mines | Lost 5 parts (1p2u2w) 1686 | -9/Mines | Entered Exiles 1732 | -9/Exiles | Discovered new exit (range 15) 1925 | -9/Exiles | Welcomed by 8R-AWN 1975 | -9/Exiles | Learned about 8R-AWN's background 1982 | -9/Exiles | Met EX-HEX 2127 | -9/Exiles | Met EX-DEC 2212 | -9/Exiles | Visited The Gauntlet 2551 | -9/Exiles | Learned location of Zion (-7) 2655 | -9/Exiles | Met EX-BIN 2684 | -9/Exiles | Aligned with FarCom system 2686 | -9/Exiles | Given EX-Vault access code 3087 | -9/Exiles | Discovered new exit (range 14) 3343 | -9/Exiles | Identified exit to Mines 3587 | -9/Exiles | Opened EX-Vault 3598 | -9/Exiles | Found Prototype Storage 3604 | -9/Exiles | Found Prototype Special Weapon 3610 | -9/Exiles | Found Prototype Energy Cannon 3612 | -9/Exiles | Identified Field Lobotomy Kit 3613 | -9/Exiles | Identified Latent Energy Streamer 3666 | -9/Exiles | Warned to stay clear of 0b10 Research branches 6983 | -9/Exiles | Stole three prototypes: Latent Energy Streamer, Field Lobotomy Kit, Lightpack 2.0 6983 | -9/Exiles | Entered Mines 7450 | -8/Mines | Identified Exp. Sensor Array 7735 | -8/Mines | Build established: Skirmisher 7821 | -8/Mines | System corruption reached 10% 7859 | -8/Mines | Core integrity fell below 50% 8028 | -8/Mines | Discovered new exit (range 9) 8048 | -8/Mines | Identified exit to Materials 8546 | -8/Mines | Lost 4 parts (1p2n1u) 8580 | -8/Mines | Discovered exit to Materials (range 6) 8588 | -8/Mines | System corruption reached 30% 8630 | -8/Mines | Core integrity fell below 20% 8686 | -8/Mines | Entered Materials 8686 | -8/Materials | Evolved 2 slots: Power x1, Propulsion x1 8824 | -8/Materials | Build established: Scavenger-Mutant 8974 | -8/Materials | System corruption reached 10% 9453 | -8/Materials | Build established: Mutant 10586 | -8/Materials | Core integrity fell below 50% 10616 | -8/Materials | Lost 3 parts (1p1u1w) 11098 | -8/Materials | Core integrity fell below 20% 11204 | -8/Materials | Assimilated S-10 Pest with FLK Orb 11208 | -8/Materials | Assimilated S-10 Pest with FLK Orb 11251 | -8/Materials | Assimilated H-61 Shepherd with FLK Orb 11462 | -8/Materials | Build established: Scavenger-Mutant 11962 | -8/Materials | Discovered new exit (range 3) 11972 | -8/Materials | Identified exit to Factory 12303 | -8/Materials | Destroyed by G-47 Trooper with Particle Gun Last Messages --------------- 12244_ G-47 Trooper knocked back. 12244_ Imp. Carbon-fiber Leg destroyed. 12246_ G-47 Trooper destroyed. 12248_ Acquired 5 matter. 12249_ Imp. Carbon-fiber Leg broken. 12249_ Overheating: Short circuit. 12253_ Overheating: Adv. Targeting Computer damaged (-12). 12256_ U-05 Engineer builds a Wall. 12262_ System corrupted: Component data lost. 12272_ Acquired Lgt. Nuclear Core. 12273_ Acquired 10 matter. 12277_ AKVYC>QYMRMKT6 P8T>WMIV 12296_ Hrd. Medium Armor Plating destroyed. 12301_ Lgt. Deuterium Engine destroyed. 12303_ S-10 Pest destroyed. Map ----- +----------------------------------------------------+ | ???????????????????????????????? ###+### %# | | ??????????????????????????????????????????####### | | ??????????????????????????????????????????####### | | ??????????????????????????????????????????# ## | | ??????????????????????????????????????????# "" ## | | ??????????????????????????????????????????# T" # | | ??????????????????????????????????????????# "" + | | ??????????????????????????????????????????# # | | ??????????????????????????????????????????#######+ | | ??????????????????????????????????????????????# | | ??????????????????????????????????????????????# | | ??????????????????????????????????????????????# | | ?????????????????? ???????????????????????????# | | ?????????????????? ??????????????????????????# | | ?????????????????##u#?????????????????????????# | | ?????????????????# ######???????????????????#### | | ?????????????????# ???????????????????# | | ????????????????## ???????????????????# | | ????????????????# ???????????????????# | | ???????????? ???# ???????????????????# | | ???????????? k## ?????#?????????????# " | | ????????????? ^ #????+##????????????# " | | ?????????????? ^ #??? #????????????#### | | ????????????????"""l s +???[ ????????????????? | | ??????????????? """ gss=%#?? ?????????????????? | | ??????????????? """ wg%%%@#?" "??????????????????? | | ????????????# a ### # "R?????############### | | ????????????# ???????## #%"?????##! | | ???????????????????????## ##??????#! ########## | | ?????????????w??????????#[#???????#! #??????# | | ????????????????????????#%#???????#! #??????# | | ??????????????w?????????# #???????#! #??????#[! | | ????????????????????????#%#???????##! #??????#]! | | ????????????????????????# #????????#### #??????#!! | | ????????????????????????# #???????????# #??????# | | ????????????????????????# #???????????# #??????### | | ????????????????????????# #??????######"####?????? | | ????????????????????????# ##?????# ^ #?????? | | ????????????????????????# ########% """ #?????? | | ????????????????????????# ## #%! """""#?????? | | ????????????????????????#k## % # %!%"""""#?????? | | ????????????????????????# %+%[ """""#?????? | | ????????????????????????#### #%%% """ #?????? | | ???????????????????????????# % # #?????? | | ???????????????????????????## ## #?????? | | ????????????????????????????# ############?????? | | ????????????????????????????# #????????????????? | | ????????????????????????????# #????????????????? | | ???????????????????????????## #########????????? | | ???????????????????????????# # """ #????????? | +----------------------------------------------------+ Best States ------------- Heat Dissipation 31 Energy Generation 25 Energy Capacity 660 Matter Stores 386 Matter Capacity 500 Sight Range 16 Robot Scan Range 20 Terrain Scan Density 10 Armor Coverage 225 Propulsion Shielding 33 Utility Shielding 33 Evasion (%) 50 Targeting Accuracy 8 Recoil Reduction 3 Item Schematics ----------------- None Robot Schematics ------------------ None Fabricated ------------ Nothing Alien Tech Used ----------------- None Achievements -------------- Crack Shot I Survived The Infestation Librarian Loot Pinata Power Corrupts Risk Taker System Compromised Tourist Uninvited Guest Challenges ------------ None Game ------ Seed AluminumDynamicBroadsword Manual? 0 Play Time 01:37:03 Cumulative 2.1 hours Start 2024.08.07 @ 18:00:59 End 2024.08.07 @ 22:54:47 Sessions 5 Manual Loads 0 Difficulty Rogue Special Mode None Game No. 2 Rogue 2 Adventurer 0 Explorer 0 Win Type - Total 0 Types 0/0/0/0/0/0/0/0/0 Lore% 4 Gallery% 5 Achievement% 6 Wizard Run 0 Options --------- Layout 2 ASCII 0 Keyboard 0 Movement Mouse Keybinds 0 Fullscreen 2 Font 24/Smallcaps Map View 50x44 Zoom Use 0% Tactical HUD 1 Map Filters NONE Filters NONE Steam 1 RUN: 6fe929c3-09ab-402f-a875-12215dedae83